Month,Organisation name,Organisation Code,Directorate,Service Category label,Service Category code,Supplier name,Payment date,Transaction number,Net Amount,Purpose of spend,Procurement classification
May,Southend-on-Sea Borough Council,http://opendatacommunities.org/id/unitary-authority/southend,ED Children & Public Health,Children And Education Services,3790,Www.Ikea.Com,43952,12061160,-259,Credit Voucher Www.Ikea.Com-CPS1 social worker is REDACTED PERSONAL DATA agreed by REDACTED PERSONAL DATA TM-provide new,Furniture/Equip Stores (5712)
May,Southend-on-Sea Borough Council,http://opendatacommunities.org/id/unitary-authority/southend,ED Adults & Communities,Cultural And Related Services,4020,Amazon.Co.Uk,43952,12061160,20.61,Books for research for next exhibition.,Other Direct Marketers (5969)
May,Southend-on-Sea Borough Council,http://opendatacommunities.org/id/unitary-authority/southend,ED Adults & Communities,Cultural And Related Services,7515,Asda Superstore,43952,12061160,139.5,"Covid-19 food purchase, please re-code to relevant code",Grocery Stores/Supermarkets (5411)
May,Southend-on-Sea Borough Council,http://opendatacommunities.org/id/unitary-authority/southend,ED Adults & Communities,Cultural And Related Services,7515,Asda Superstore,43952,12061160,43.3,"Covid-19 food purchase, please re-code to relevant code",Grocery Stores/Supermarkets (5411)
May,Southend-on-Sea Borough Council,http://opendatacommunities.org/id/unitary-authority/southend,ED Finance & Resources,Housing Services,6011,Tesco Online,43952,12061160,44.97,Phones for rough sleepers,Misc Speciality Retail (5999)
May,Southend-on-Sea Borough Council,http://opendatacommunities.org/id/unitary-authority/southend,ED Children & Public Health,Children And Education Services,3692,Same Day Dispatch Serv,43952,12061160,218.4,Invoice 11817 - Same Day Courier Service,Courier Services (4215)
May,Southend-on-Sea Borough Council,http://opendatacommunities.org/id/unitary-authority/southend,ED Adults & Communities,Planning Services,5635,Cartridgepeople.Com,43952,12061160,42.48,One off purchase of ink cartridges and paper for report printing whilst working from home.,Stationery/Office Supplies (5111)
May,Southend-on-Sea Borough Council,http://opendatacommunities.org/id/unitary-authority/southend,ED Adults & Communities,Adult Social Care,1342,Ocs Group Uk,43952,12061160,17.85,covid - 19 Food for workers,Eating Places/Restaurants (5812)
May,Southend-on-Sea Borough Council,http://opendatacommunities.org/id/unitary-authority/southend,ED Transformation,Central Services to the Public,2045,123 Reg Ltd,43952,12061160,95.94,Domain registration for South Essex Homes website,Continuity/Subscription Mercht (5968)
May,Southend-on-Sea Borough Council,http://opendatacommunities.org/id/unitary-authority/southend,ED Finance & Resources,Central Services to the Public,7150,Amazon.Co.Uk,43952,12061160,140.17,REDACTED PERSONAL DATA CIPS books for exam course,Misc Speciality Retail (5999)
May,Southend-on-Sea Borough Council,http://opendatacommunities.org/id/unitary-authority/southend,ED Transformation,Central Services to the Public,7140,Amznmktplace Amazon.Co.Uk,43952,12061160,14.5,PAT Testing labels for use by technicians,Misc Speciality Retail (5999)
May,Southend-on-Sea Borough Council,http://opendatacommunities.org/id/unitary-authority/southend,ED Transformation,Central Services to the Public,7140,Amznmktplace Amazon.Co.Uk,43952,12061160,54.95,CoronaVirus - Work from home Equipment,Misc Speciality Retail (5999)
May,Southend-on-Sea Borough Council,http://opendatacommunities.org/id/unitary-authority/southend,ED Finance & Resources,Housing Services,6011,Tesco Online,43952,12061160,44.97,Phones for rough sleepers,Misc Speciality Retail (5999)
May,Southend-on-Sea Borough Council,http://opendatacommunities.org/id/unitary-authority/southend,ED Finance & Resources,Housing Services,6011,Ac Radio Cabs,43952,12061160,55,Taxi for rough sleeper,Taxicabs/Limousines (4121)
May,Southend-on-Sea Borough Council,http://opendatacommunities.org/id/unitary-authority/southend,ED Finance & Resources,Housing Services,6011,Douglas Payne Designs,43952,12061160,55,Taxi for rough sleeper,Artist/Craft Shops (5970)
May,Southend-on-Sea Borough Council,http://opendatacommunities.org/id/unitary-authority/southend,ED Adults & Communities,Adult Social Care,1342,Ocs Group Uk,43952,12061160,22.2,covid - 19 Food for workers,Eating Places/Restaurants (5812)
May,Southend-on-Sea Borough Council,http://opendatacommunities.org/id/unitary-authority/southend,ED Adults & Communities,Cultural And Related Services,4120,Premier Farnell,43952,12061160,27,floor marking tape - social distancing reopening,Electrical Parts/Equipment (5065)
May,Southend-on-Sea Borough Council,http://opendatacommunities.org/id/unitary-authority/southend,ED Adults & Communities,Cultural And Related Services,4020,Amazon.Co.Uk,43952,12061160,93.06,Books for research for upcoming exhibition.,Other Direct Marketers (5969)
May,Southend-on-Sea Borough Council,http://opendatacommunities.org/id/unitary-authority/southend,ED Finance & Resources,Central Services to the Public,7150,Amazon.Co.Uk,43952,12061160,12.68,REDACTED PERSONAL DATA CIPS exam coursework books.,Misc Speciality Retail (5999)
May,Southend-on-Sea Borough Council,http://opendatacommunities.org/id/unitary-authority/southend,ED Neighbourhoods & Environment,Environmental And Regulatory Services,7035,Chartered Institute Of En,43952,12061160,-145,Credit Voucher Chartered Institute Of En,Charitable/Soc Service Orgs (8398)
May,Southend-on-Sea Borough Council,http://opendatacommunities.org/id/unitary-authority/southend,ED Finance & Resources,Central Services to the Public,1025,Post Office Counter,43952,12061160,23.96,stationery for home working,Postage Stamps (9402)
May,Southend-on-Sea Borough Council,http://opendatacommunities.org/id/unitary-authority/southend,ED Adults & Communities,Cultural And Related Services,4120,Amazon Prime Amzn.Co.Uk/P,43952,12061160,-7.99,Credit Voucher Amazon Prime Amzn.Co.Uk/P,Continuity/Subscription Mercht (5968)
May,Southend-on-Sea Borough Council,http://opendatacommunities.org/id/unitary-authority/southend,ED Adults & Communities,Cultural And Related Services,4012,Apple.Com/Bill,43952,12061160,9.99,Monthly iTunes subscription for Twenty One venue.,Record Shops (5735)
May,Southend-on-Sea Borough Council,http://opendatacommunities.org/id/unitary-authority/southend,ED Adults & Communities,Adult Social Care,1342,Ocs Group Uk,43952,12061160,16.9,Covid-19 food for workers,Eating Places/Restaurants (5812)
May,Southend-on-Sea Borough Council,http://opendatacommunities.org/id/unitary-authority/southend,ED Transformation,Central Services to the Public,7140,Amznmktplace Amazon.Co.Uk,43952,12061160,60,Work from home equipment,Misc Speciality Retail (5999)
May,Southend-on-Sea Borough Council,http://opendatacommunities.org/id/unitary-authority/southend,ED Transformation,Central Services to the Public,7096,Www.Just Eat.Co.Uk,43952,12061160,179.3,Covid-19 Helpline & CS onsite staff lunch x 27,Eating Places/Restaurants (5812)
May,Southend-on-Sea Borough Council,http://opendatacommunities.org/id/unitary-authority/southend,ED Adults & Communities,Central Services to the Public,7110,Amznmktplace Amazon.Co.Uk,43952,12061160,27.95,Headset for home working for REDACTED PERSONAL DATA,Misc Speciality Retail (5999)
May,Southend-on-Sea Borough Council,http://opendatacommunities.org/id/unitary-authority/southend,ED Adults & Communities,Central Services to the Public,7110,Paypal,43952,12061160,276,Subscription one year CAD programme (SketchUp pro bundle) licence to facilitate home working,Computer Program/Sys Design (7372)
May,Southend-on-Sea Borough Council,http://opendatacommunities.org/id/unitary-authority/southend,ED Neighbourhoods & Environment,Environmental And Regulatory Services,7035,Paypal,43952,12061160,95.98,Disposable face masks PPE,Lab/Med/Hospital Equipment (5047)
May,Southend-on-Sea Borough Council,http://opendatacommunities.org/id/unitary-authority/southend,ED Adults & Communities,Central Services to the Public,7540,Amznmktplace Amazon.Co.Uk,43952,12061160,99.95,garden twist twinedue to COVID 19 - could not get from our usual supplier,Misc Speciality Retail (5999)
May,Southend-on-Sea Borough Council,http://opendatacommunities.org/id/unitary-authority/southend,ED Finance & Resources,Housing Services,6011,Tesco Online,43952,12061160,30,phone credit for rough sleepers,Misc Speciality Retail (5999)
May,Southend-on-Sea Borough Council,http://opendatacommunities.org/id/unitary-authority/southend,ED Finance & Resources,Housing Services,6011,Tesco Online,43952,12061160,44.97,Phones for rough sleepers,Misc Speciality Retail (5999)
May,Southend-on-Sea Borough Council,http://opendatacommunities.org/id/unitary-authority/southend,ED Adults & Communities,Cultural And Related Services,4120,Amazon.Co.Uk,43952,12061160,164.19,Draper 12-24V battery boost/ charger,Misc Speciality Retail (5999)
May,Southend-on-Sea Borough Council,http://opendatacommunities.org/id/unitary-authority/southend,ED Adults & Communities,Cultural And Related Services,4120,Tesco Stores 6026,43953,12061160,17,COVID FOOD,Grocery Stores/Supermarkets (5411)
May,Southend-on-Sea Borough Council,http://opendatacommunities.org/id/unitary-authority/southend,ED Finance & Resources,Central Services to the Public,7150,Amznmktplace,43953,12061160,4.65,REDACTED PERSONAL DATA mouse for home working.,Misc Speciality Retail (5999)
May,Southend-on-Sea Borough Council,http://opendatacommunities.org/id/unitary-authority/southend,ED Adults & Communities,Cultural And Related Services,4120,Www.Drmartens.Com,43953,12061160,149,Work boots for REDACTED PERSONAL DATA,Misc Speciality Retail (5999)
May,Southend-on-Sea Borough Council,http://opendatacommunities.org/id/unitary-authority/southend,ED Finance & Resources,Central Services to the Public,7150,Amznmktplace,43954,12061160,23.45,REDACTED PERSONAL DATA Tools for homeworking.,Misc Speciality Retail (5999)
May,Southend-on-Sea Borough Council,http://opendatacommunities.org/id/unitary-authority/southend,ED Finance & Resources,Central Services to the Public,7120,Www.Ukpos.Com,43954,12061160,750.12,covid equipment and signage,Stationery Stores (5943)
May,Southend-on-Sea Borough Council,http://opendatacommunities.org/id/unitary-authority/southend,ED Adults & Communities,Cultural And Related Services,4120,Amz*deuba-Uk,43954,12061160,-26.95,Credit Voucher Amz*deuba-Uk,Misc Speciality Retail (5999)
May,Southend-on-Sea Borough Council,http://opendatacommunities.org/id/unitary-authority/southend,ED Finance & Resources,Housing Services,6011,Tesco Online,43954,12061160,44.97,Phones for rough sleepers,Misc Speciality Retail (5999)
May,Southend-on-Sea Borough Council,http://opendatacommunities.org/id/unitary-authority/southend,ED Transformation,Central Services to the Public,7140,Amznmktplace Amazon.Co.Uk,43954,12061160,124.95,Amazon - Food Bags for the Civic Centre Tower Block,Misc Speciality Retail (5999)
May,Southend-on-Sea Borough Council,http://opendatacommunities.org/id/unitary-authority/southend,ED Neighbourhoods & Environment,Environmental And Regulatory Services,4525,Bp West Street Convenienc,43954,12061160,48.3,Diesel fuel for works van re COVID 19 patrols and response,Service Stations (5541)
May,Southend-on-Sea Borough Council,http://opendatacommunities.org/id/unitary-authority/southend,ED Adults & Communities,Cultural And Related Services,4120,Www.Ukpos.Com,43955,12061160,55.74,social distancing floor markers,Stationery Stores (5943)
May,Southend-on-Sea Borough Council,http://opendatacommunities.org/id/unitary-authority/southend,ED Adults & Communities,Cultural And Related Services,4200,Www.Justgloves.Co.Uk,43955,12061160,103.5,Covid-19 Hand Sanitiser for Parks Management Team,Misc Speciality Retail (5999)
May,Southend-on-Sea Borough Council,http://opendatacommunities.org/id/unitary-authority/southend,ED Children & Public Health,Children And Education Services,3396,Monte Portuguese Cafe R,43955,12061160,16.65,food for child,Eating Places/Restaurants (5812)
May,Southend-on-Sea Borough Council,http://opendatacommunities.org/id/unitary-authority/southend,ED Transformation,Central Services to the Public,7140,Amznmktplace Amazon.Co.Uk,43955,12061160,139.98,Amazon - Hand Sanitizer for Civic Centre,Misc Speciality Retail (5999)
May,Southend-on-Sea Borough Council,http://opendatacommunities.org/id/unitary-authority/southend,ED Adults & Communities,Cultural And Related Services,4120,Asda Superstore,43955,12061160,9,"Paper plates, cups and napkins for VE Day display on the Pier.",Grocery Stores/Supermarkets (5411)
May,Southend-on-Sea Borough Council,http://opendatacommunities.org/id/unitary-authority/southend,ED Adults & Communities,Cultural And Related Services,4120,Amznmktplace Amazon.Co.Uk,43955,12061160,171.8,Disposable masks-PPE for Covid 19.,Misc Speciality Retail (5999)
May,Southend-on-Sea Borough Council,http://opendatacommunities.org/id/unitary-authority/southend,ED Finance & Resources,Children And Education Services,3201,Association For Coaching,43955,12061160,912,Staying Agile Webinar for 6 members of Staff,Professional Services - Def (8999)
May,Southend-on-Sea Borough Council,http://opendatacommunities.org/id/unitary-authority/southend,ED Adults & Communities,Central Services to the Public,7160,Amazon.Co.Uk,43955,12061160,17.17,COVID - Keyboard & Mouse - REDACTED PERSONAL DATA,Other Direct Marketers (5969)
May,Southend-on-Sea Borough Council,http://opendatacommunities.org/id/unitary-authority/southend,ED Adults & Communities,Central Services to the Public,7160,Amazon.Co.Uk,43955,12061160,17.17,COVID - Keyboard & Mouse - REDACTED PERSONAL DATA,Other Direct Marketers (5969)
May,Southend-on-Sea Borough Council,http://opendatacommunities.org/id/unitary-authority/southend,ED Finance & Resources,Housing Services,6011,Tesco Online,43955,12061160,44.97,Phones for rough sleepers,Misc Speciality Retail (5999)
May,Southend-on-Sea Borough Council,http://opendatacommunities.org/id/unitary-authority/southend,ED Adults & Communities,Cultural And Related Services,4120,Www.Toolstation.Com,43956,12061160,56.9,Cabling and connectors for pressure washer,Hardware Stores (5251)
May,Southend-on-Sea Borough Council,http://opendatacommunities.org/id/unitary-authority/southend,ED Finance & Resources,Central Services to the Public,7120,Www.Ukpos.Com,43956,12061160,995.52,Corona Virus - ordered for REDACTED PERSONAL DATA for Civic,Stationery Stores (5943)
May,Southend-on-Sea Borough Council,http://opendatacommunities.org/id/unitary-authority/southend,ED Transformation,Central Services to the Public,7140,Amznmktplace Amazon.Co.Uk,43956,12061160,32.91,Amazon - Facemasks - Civic Centre,Misc Speciality Retail (5999)
May,Southend-on-Sea Borough Council,http://opendatacommunities.org/id/unitary-authority/southend,ED Transformation,Central Services to the Public,7140,Currys Online,43956,12061160,49.99,Coronvirus - Curry's / PC World - Equipment for Working From Home,Electronics Sales (5732)
May,Southend-on-Sea Borough Council,http://opendatacommunities.org/id/unitary-authority/southend,ED Adults & Communities,Cultural And Related Services,4055,Krys-880423,43956,12061160,9.59,Focal Point Domain annual renewal,Computer Program/Sys Design (7372)
May,Southend-on-Sea Borough Council,http://opendatacommunities.org/id/unitary-authority/southend,ED Finance & Resources,Central Services to the Public,1035,"Rstudio, Inc.",43956,12061160,247.87,RShiny_May20,Computer Program/Sys Design (7372)
May,Southend-on-Sea Borough Council,http://opendatacommunities.org/id/unitary-authority/southend,ED Adults & Communities,Adult Social Care,1342,Ocs Group Uk,43955,12061160,38.85,Food for Staff working long hours,Eating Places/Restaurants (5812)
May,Southend-on-Sea Borough Council,http://opendatacommunities.org/id/unitary-authority/southend,ED Adults & Communities,Cultural And Related Services,4256,Protec Direct,43957,12061160,38.97,PPE for return of staff to work - Protec,Industrial Supplies - Def (5085)
May,Southend-on-Sea Borough Council,http://opendatacommunities.org/id/unitary-authority/southend,ED Adults & Communities,Central Services to the Public,7110,Thetrainline.Com,43957,12061160,-34.8,Credit Voucher Thetrainline.Com,Passenger Railways (4112)
May,Southend-on-Sea Borough Council,http://opendatacommunities.org/id/unitary-authority/southend,ED Adults & Communities,Cultural And Related Services,4120,Marks&spencer Plc Saca,43957,12061160,10,2 x VE Day tins for Pier display.,Grocery Stores/Supermarkets (5411)
May,Southend-on-Sea Borough Council,http://opendatacommunities.org/id/unitary-authority/southend,ED Finance & Resources,Children And Education Services,3201,Participant UK Ltd,43957,12061160,234,Protecting Victims of Domestic Abuse During COVID-19 Webinar 02.06.20 for REDACTED PERSONAL DATA,Computer Network/Info Svcs (4816)
May,Southend-on-Sea Borough Council,http://opendatacommunities.org/id/unitary-authority/southend,ED Adults & Communities,Central Services to the Public,7540,Sth Essex Fastener,43957,12061160,15.31,Nuts & bolts,Hardware Equipment/Supplies (5072)
May,Southend-on-Sea Borough Council,http://opendatacommunities.org/id/unitary-authority/southend,ED Finance & Resources,Housing Services,6011,Southend.Gov.Uk,43957,12061160,82.25,Rent top up for former rough sleeper,Govt Serv - Default (9399)
May,Southend-on-Sea Borough Council,http://opendatacommunities.org/id/unitary-authority/southend,ED Finance & Resources,Central Services to the Public,1035,Amazon.Co.Uk,43957,12061160,29.99,Keyboard_COVID_Equipment_REDACTED PERSONAL DATA,Misc Speciality Retail (5999)
May,Southend-on-Sea Borough Council,http://opendatacommunities.org/id/unitary-authority/southend,ED Children & Public Health,Children And Education Services,3310,Amazon.Co.Uk,43957,12061160,29.4,Books for Looked After Children,Misc Speciality Retail (5999)
May,Southend-on-Sea Borough Council,http://opendatacommunities.org/id/unitary-authority/southend,ED Transformation,Central Services to the Public,2045,Newsquest Media,43958,12061160,180,Echo print ad - thankyou to NHS and key workers,Misc Publishing & Printing (2741)
May,Southend-on-Sea Borough Council,http://opendatacommunities.org/id/unitary-authority/southend,ED Finance & Resources,Central Services to the Public,2074,Amazon.Co.Uk,43958,12061160,32.98,Keyboard for working at home but returned as foreign keyboard - credit to follow,Other Direct Marketers (5969)
May,Southend-on-Sea Borough Council,http://opendatacommunities.org/id/unitary-authority/southend,ED Adults & Communities,Cultural And Related Services,4055,The Post Office,43958,12061160,64.54,Postage of REDACTED PERSONAL DATA books for competition submission and Kickstarter rewards.,Postage Stamps (9402)
May,Southend-on-Sea Borough Council,http://opendatacommunities.org/id/unitary-authority/southend,ED Adults & Communities,Cultural And Related Services,4025,The Range,43958,12061160,43.96,paint for refub in office 1st floor central museum,Department Stores (5311)
May,Southend-on-Sea Borough Council,http://opendatacommunities.org/id/unitary-authority/southend,ED Adults & Communities,Adult Social Care,1342,Ocs Group Uk,43957,12061160,42.1,Food for covid workers working long hours,Eating Places/Restaurants (5812)
May,Southend-on-Sea Borough Council,http://opendatacommunities.org/id/unitary-authority/southend,ED Growth & Housing,Planning Services,5641,Amazon.Co.Uk,43958,12061160,17.69,Monitor Stand,Misc Speciality Retail (5999)
May,Southend-on-Sea Borough Council,http://opendatacommunities.org/id/unitary-authority/southend,ED Adults & Communities,Cultural And Related Services,4255,Amznmktplace Amazon.Co.Uk,43959,12061160,89.52,Disposable gloves for libraries,Misc Speciality Retail (5999)
May,Southend-on-Sea Borough Council,http://opendatacommunities.org/id/unitary-authority/southend,ED Adults & Communities,Cultural And Related Services,4151,123 Reg Ltd,43959,12061160,19.19,Active Southend annual web domain renewal,Continuity/Subscription Mercht (5968)
May,Southend-on-Sea Borough Council,http://opendatacommunities.org/id/unitary-authority/southend,ED Finance & Resources,Central Services to the Public,2074,Amznmktplace,43960,12061160,34.48,Incorrectly charged to card and is being repaid!,Misc Speciality Retail (5999)
May,Southend-on-Sea Borough Council,http://opendatacommunities.org/id/unitary-authority/southend,ED Adults & Communities,Cultural And Related Services,4120,Amznmktplace Amazon.Co.Uk,43960,12061160,59.98,Cat food for Pier cat (few month supply),Misc Speciality Retail (5999)
May,Southend-on-Sea Borough Council,http://opendatacommunities.org/id/unitary-authority/southend,ED Adults & Communities,Cultural And Related Services,4055,Mailchimp,43961,12061160,83.29,Monthly mailchimp subscription - FPG mailing list,Continuity/Subscription Mercht (5968)
May,Southend-on-Sea Borough Council,http://opendatacommunities.org/id/unitary-authority/southend,ED Adults & Communities,Cultural And Related Services,4256,Global Office Supplies,43962,12061160,419.38,PPE supplies for Libraries.,Stationery Stores (5943)
May,Southend-on-Sea Borough Council,http://opendatacommunities.org/id/unitary-authority/southend,ED Transformation,Central Services to the Public,7140,Royal Mail Online Shop,43962,12061160,22.2,Royal Mail - Mail Supplies for Online Business Account,Postage Stamps (9402)
May,Southend-on-Sea Borough Council,http://opendatacommunities.org/id/unitary-authority/southend,ED Growth & Housing,Planning Services,5641,Amznmktplace,43962,12061160,19.99,Keyboard and Mouse,Misc Speciality Retail (5999)
May,Southend-on-Sea Borough Council,http://opendatacommunities.org/id/unitary-authority/southend,ED Adults & Communities,Cultural And Related Services,4120,Www.Eposnow.Com,43962,12061160,42,"Premium support license for EPOS system in Salt Cafe, Pier Head.",Computer Program/Sys Design (7372)
May,Southend-on-Sea Borough Council,http://opendatacommunities.org/id/unitary-authority/southend,ED Adults & Communities,Central Services to the Public,7540,Amazon.Co.Uk,43962,12061160,120,storage boxesCOVID 19 - guidance. no one allowed to collect there ashes from the crematorium.,Other Direct Marketers (5969)
May,Southend-on-Sea Borough Council,http://opendatacommunities.org/id/unitary-authority/southend,ED Adults & Communities,Cultural And Related Services,4255,Amznmktplace,43962,12061160,27.45,"Face masks for,libraries",Misc Speciality Retail (5999)
May,Southend-on-Sea Borough Council,http://opendatacommunities.org/id/unitary-authority/southend,ED Growth & Housing,Planning Services,5641,Amznmktplace Amazon.Co.Uk,43962,12061160,28.99,Laptop Stand,Misc Speciality Retail (5999)
May,Southend-on-Sea Borough Council,http://opendatacommunities.org/id/unitary-authority/southend,ED Adults & Communities,Cultural And Related Services,4120,Amznmktplace Amazon.Co.Uk,43962,12061160,51.5,Props for window display at Pier entrance.,Misc Speciality Retail (5999)
May,Southend-on-Sea Borough Council,http://opendatacommunities.org/id/unitary-authority/southend,ED Children & Public Health,Children And Education Services,3396,Monte Portuguese Cafe R,43963,12061160,6.8,food for client,Eating Places/Restaurants (5812)
May,Southend-on-Sea Borough Council,http://opendatacommunities.org/id/unitary-authority/southend,ED Transformation,Central Services to the Public,7140,Zafety Supplies Ltd,43963,12061160,77.7,Coronavirus - Alcohol Spray 500ml for Civic Towerblock,Lab/Med/Hospital Equipment (5047)
May,Southend-on-Sea Borough Council,http://opendatacommunities.org/id/unitary-authority/southend,ED Neighbourhoods & Environment,Environmental And Regulatory Services,7035,Racekit.Co.Uk,43963,12061160,593.6,Face coverings for officers where social distancing not possible or required,Sporting Goods Stores (5941)
May,Southend-on-Sea Borough Council,http://opendatacommunities.org/id/unitary-authority/southend,ED Finance & Resources,Central Services to the Public,1025,Disclosure & Barring,43963,12061160,13,renewal of DBS,Govt Serv - Default (9399)
May,Southend-on-Sea Borough Council,http://opendatacommunities.org/id/unitary-authority/southend,ED Adults & Communities,Cultural And Related Services,4120,Wilko Retail Limited,43963,12061160,25,Paint & mop to decorate Salt Cafe.,Misc Gen Merchandise - Def (5399)
May,Southend-on-Sea Borough Council,http://opendatacommunities.org/id/unitary-authority/southend,ED Finance & Resources,Housing Services,6011,P Southend Central Sst,43963,12061160,7.1,train ticket for rough sleeper,Passenger Railways (4112)
May,Southend-on-Sea Borough Council,http://opendatacommunities.org/id/unitary-authority/southend,ED Finance & Resources,Housing Services,6011,P Southend Central Sst,43963,12061160,7.1,Train ticket for rough sleeper,Passenger Railways (4112)
May,Southend-on-Sea Borough Council,http://opendatacommunities.org/id/unitary-authority/southend,ED Finance & Resources,Housing Services,6011,Tesco Online,43963,12061160,20,phone credit for rough sleepers,Misc Speciality Retail (5999)
May,Southend-on-Sea Borough Council,http://opendatacommunities.org/id/unitary-authority/southend,ED Adults & Communities,Cultural And Related Services,4256,Protec Direct,43957,12061160,-38.97,Credit Voucher Protec Direct - as unable to supply PPE,Industrial Supplies - Def (5085)
May,Southend-on-Sea Borough Council,http://opendatacommunities.org/id/unitary-authority/southend,ED Adults & Communities,Adult Social Care,1342,Ocs Group Uk,43962,12061160,26.05,Food for workers doing long hours during Covid,Eating Places/Restaurants (5812)
May,Southend-on-Sea Borough Council,http://opendatacommunities.org/id/unitary-authority/southend,ED Finance & Resources,Central Services to the Public,2074,Amazon.Co.Uk,43963,12061160,53.05,Keyboard for home working - foreign keyboard arrives so returned and credit to follow,Misc Speciality Retail (5999)
May,Southend-on-Sea Borough Council,http://opendatacommunities.org/id/unitary-authority/southend,ED Adults & Communities,Central Services to the Public,7110,Amznmktplace Amazon.Co.Uk,43964,12061160,23.88,Keyboard purchase needed one for home working as one i had was broken agreed with REDACTED PERSONAL DATA,Misc Speciality Retail (5999)
May,Southend-on-Sea Borough Council,http://opendatacommunities.org/id/unitary-authority/southend,ED Finance & Resources,Central Services to the Public,2074,Amznmktplace Amazon.Co.Uk,43964,12061160,44.46,Keyboard & mouse for home working,Misc Speciality Retail (5999)
May,Southend-on-Sea Borough Council,http://opendatacommunities.org/id/unitary-authority/southend,ED Adults & Communities,Cultural And Related Services,4055,Chicago Books & Journals,43964,12061160,22.27,Subscription to research journal,Colleges/Univ/Jc/Profession (8220)
May,Southend-on-Sea Borough Council,http://opendatacommunities.org/id/unitary-authority/southend,ED Growth & Housing,Planning Services,5701,Paypal,43964,12061160,45.89,Courier costs for collection of laptop on behalf of REDACTED PERSONAL DATA,Courier Services (4215)
May,Southend-on-Sea Borough Council,http://opendatacommunities.org/id/unitary-authority/southend,ED Adults & Communities,Adult Social Care,1342,Ocs Group Uk,43963,12061160,27.8,Food for key workers working long days during Covid,Eating Places/Restaurants (5812)
May,Southend-on-Sea Borough Council,http://opendatacommunities.org/id/unitary-authority/southend,ED Children & Public Health,Children And Education Services,3790,M Blue Ltd,43964,12061160,475,Accommadation booked for a family who was vulnerable & fleeing REDACTED PERSONAL DATA,Lodging/Hotels/Motels/Resorts (7011)
May,Southend-on-Sea Borough Council,http://opendatacommunities.org/id/unitary-authority/southend,ED Adults & Communities,Cultural And Related Services,4045,Amznmktplace Amazon.Co.Uk,43964,12061160,18.13,Storage boxes - exhibition installation materials and equipment.,Misc Speciality Retail (5999)
May,Southend-on-Sea Borough Council,http://opendatacommunities.org/id/unitary-authority/southend,ED Growth & Housing,Planning Services,5701,Amazon.Co.Uk,43964,12061160,150,Gift cards for SEAT surveys,Misc Speciality Retail (5999)
May,Southend-on-Sea Borough Council,http://opendatacommunities.org/id/unitary-authority/southend,ED Adults & Communities,Cultural And Related Services,4045,Dw Tool Shop,43965,12061160,173.28,Workshop trollies for tools/equipment - installation of exhibitions,Hardware Equipment/Supplies (5072)
May,Southend-on-Sea Borough Council,http://opendatacommunities.org/id/unitary-authority/southend,ED Adults & Communities,Cultural And Related Services,4045,Amznmktplace Amazon.Co.Uk,43965,12061160,24.64,Storage boxes - exhibition installation materials and equipment.,Misc Speciality Retail (5999)
May,Southend-on-Sea Borough Council,http://opendatacommunities.org/id/unitary-authority/southend,ED Adults & Communities,Cultural And Related Services,4045,Amznmktplace Amazon.Co.Uk,43965,12061160,41.61,Storage boxes - exhibition installation materials and equipment.,Misc Speciality Retail (5999)
May,Southend-on-Sea Borough Council,http://opendatacommunities.org/id/unitary-authority/southend,ED Adults & Communities,Cultural And Related Services,4045,Amznmktplace Amazon.Co.Uk,43965,12061160,164.37,Storage boxes - exhibition installation materials and equipment.,Misc Speciality Retail (5999)
May,Southend-on-Sea Borough Council,http://opendatacommunities.org/id/unitary-authority/southend,ED Adults & Communities,Cultural And Related Services,4120,The Montine,43965,12061160,59.94,Slush syrups and chocolate flakes for ice cream cornets in the refreshment kiosk.,Grocery Stores/Supermarkets (5411)
May,Southend-on-Sea Borough Council,http://opendatacommunities.org/id/unitary-authority/southend,ED Adults & Communities,Cultural And Related Services,4120,The Montine,43965,12061160,40,Slush syrups and chocolate flakes for ice cream cornets in the refreshment kiosk.,Grocery Stores/Supermarkets (5411)
May,Southend-on-Sea Borough Council,http://opendatacommunities.org/id/unitary-authority/southend,ED Adults & Communities,Adult Social Care,1342,Ocs Group Uk,43964,12061160,12.6,Food for keyworkers working unsociable hours during covid,Eating Places/Restaurants (5812)
May,Southend-on-Sea Borough Council,http://opendatacommunities.org/id/unitary-authority/southend,ED Adults & Communities,Cultural And Related Services,4045,Amznmktplace Amazon.Co.Uk,43965,12061160,42.52,Storage boxes - exhibition installation materials and equipment.,Misc Speciality Retail (5999)
May,Southend-on-Sea Borough Council,http://opendatacommunities.org/id/unitary-authority/southend,ED Children & Public Health,Children And Education Services,3138,Interflora British Uni,43966,12061160,53,flowers sent with condolences to member of staff,Florists (5992)
May,Southend-on-Sea Borough Council,http://opendatacommunities.org/id/unitary-authority/southend,ED Finance & Resources,Central Services to the Public,7150,Amznmktplace Amazon.Co.Uk,43966,12061160,46.89,REDACTED PERSONAL DATA - webcam for ms teams.,Misc Speciality Retail (5999)
May,Southend-on-Sea Borough Council,http://opendatacommunities.org/id/unitary-authority/southend,ED Adults & Communities,Adult Social Care,1342,Ocs Group Uk,43966,12061160,46.7,Food for keyworkers working long hours during covid,Eating Places/Restaurants (5812)
May,Southend-on-Sea Borough Council,http://opendatacommunities.org/id/unitary-authority/southend,ED Finance & Resources,Children And Education Services,3201,Cadline Ltd,43966,12061160,354,Autocad training plus license for REDACTED PERSONAL DATA,Computer Network/Info Svcs (4816)
May,Southend-on-Sea Borough Council,http://opendatacommunities.org/id/unitary-authority/southend,ED Adults & Communities,Adult Social Care,1342,Amznmktplace Amazon.Co.Uk,43966,12061160,527,Dementia Support Equipment for Care Homes - (COVID19),Misc Speciality Retail (5999)
May,Southend-on-Sea Borough Council,http://opendatacommunities.org/id/unitary-authority/southend,ED Children & Public Health,Children And Education Services,3396,Monte Portuguese Cafe R,43967,12061160,13.2,food for children,Eating Places/Restaurants (5812)
May,Southend-on-Sea Borough Council,http://opendatacommunities.org/id/unitary-authority/southend,ED Adults & Communities,Cultural And Related Services,4045,Amazon.Co.Uk,43967,12061160,12.64,Storage boxes - exhibition installation materials and equipment.,Misc Speciality Retail (5999)
May,Southend-on-Sea Borough Council,http://opendatacommunities.org/id/unitary-authority/southend,ED Adults & Communities,Cultural And Related Services,4045,Amazon.Co.Uk,43967,12061160,17.28,Storage boxes - exhibition installation materials and equipment.,Misc Speciality Retail (5999)
May,Southend-on-Sea Borough Council,http://opendatacommunities.org/id/unitary-authority/southend,ED Adults & Communities,Cultural And Related Services,4045,Amznmktplace Amazon.Co.Uk,43967,12061160,-24.64,Credit Voucher Amznmktplace Amazon.Co.Uk,Misc Speciality Retail (5999)
May,Southend-on-Sea Borough Council,http://opendatacommunities.org/id/unitary-authority/southend,ED Adults & Communities,Cultural And Related Services,4045,Amazon.Co.Uk,43967,12061160,25.93,Storage boxes - exhibition installation materials and equipment.,Misc Speciality Retail (5999)
May,Southend-on-Sea Borough Council,http://opendatacommunities.org/id/unitary-authority/southend,ED Adults & Communities,Cultural And Related Services,4045,Amznmktplace Amazon.Co.Uk,43967,12061160,-41.61,Credit Voucher Amznmktplace Amazon.Co.Uk,Misc Speciality Retail (5999)
May,Southend-on-Sea Borough Council,http://opendatacommunities.org/id/unitary-authority/southend,ED Adults & Communities,Cultural And Related Services,4120,Www.Ukpos.Com,43968,12061160,150.66,social distancing floor stickers,Stationery Stores (5943)
May,Southend-on-Sea Borough Council,http://opendatacommunities.org/id/unitary-authority/southend,ED Finance & Resources,Central Services to the Public,2074,Amznmktplace,43968,12061160,40.98,Keyboard for working at home but returned as foreign keyboard - credit to follow,Misc Speciality Retail (5999)
May,Southend-on-Sea Borough Council,http://opendatacommunities.org/id/unitary-authority/southend,ED Children & Public Health,Children And Education Services,3310,Amazon.Co.Uk,43968,12061160,6.57,Books for Looked After Children,Other Direct Marketers (5969)
May,Southend-on-Sea Borough Council,http://opendatacommunities.org/id/unitary-authority/southend,ED Finance & Resources,Housing Services,6011,Www C2c Online Co Uk,43964,12061160,10.1,train ticket for rough sleeper,Local Commuter Transport (4111)
May,Southend-on-Sea Borough Council,http://opendatacommunities.org/id/unitary-authority/southend,ED Finance & Resources,Housing Services,6011,Www C2c Online Co Uk,43964,12061160,60.6,train ticket for rough sleeper,Local Commuter Transport (4111)
May,Southend-on-Sea Borough Council,http://opendatacommunities.org/id/unitary-authority/southend,ED Adults & Communities,Cultural And Related Services,4045,Amazon.Co.Uk,43969,12061160,12,Storage boxes - exhibition installation materials and equipment.,Misc Speciality Retail (5999)
May,Southend-on-Sea Borough Council,http://opendatacommunities.org/id/unitary-authority/southend,ED Growth & Housing,Planning Services,5641,Essentials For Education,43969,12061160,62.39,Display items for careers/jobs fairs,Gift/Card/Novelty And Souvenir Stores (5947)
May,Southend-on-Sea Borough Council,http://opendatacommunities.org/id/unitary-authority/southend,ED Children & Public Health,Children And Education Services,3471,Tvlicensing.Co.Uk,43969,12061160,157.5,annual TV license for the youth centre,Mgmt/Consult/Public Rel Ser (7392)
May,Southend-on-Sea Borough Council,http://opendatacommunities.org/id/unitary-authority/southend,ED Children & Public Health,Children And Education Services,3396,Apple.Com/Bill,43970,12061160,0.79,Ipad app - vat to ireland,Record Shops (5735)
May,Southend-on-Sea Borough Council,http://opendatacommunities.org/id/unitary-authority/southend,ED Adults & Communities,Central Services to the Public,7110,Argos Ltd,43970,12061160,24.99,Wireless keyboard and mouse as authorised by REDACTED PERSONAL DATA,Discount Stores (5310)
May,Southend-on-Sea Borough Council,http://opendatacommunities.org/id/unitary-authority/southend,ED Adults & Communities,Cultural And Related Services,4120,Brights Locksmiths Ltd,43970,12061160,67.8,Various keys for Southend Pier,Spec Contractors - Default (1799)
May,Southend-on-Sea Borough Council,http://opendatacommunities.org/id/unitary-authority/southend,ED Adults & Communities,Central Services to the Public,7540,Key Centre,43970,12061160,288,X 6 Viro panzer padlocks,Hardware Stores (5251)
May,Southend-on-Sea Borough Council,http://opendatacommunities.org/id/unitary-authority/southend,ED Growth & Housing,Planning Services,5641,Amznmktplace,43971,12061160,65.28,personal satefy equipment (Covid-19),Misc Speciality Retail (5999)
May,Southend-on-Sea Borough Council,http://opendatacommunities.org/id/unitary-authority/southend,ED Adults & Communities,Central Services to the Public,7110,Www.Cibse.Org,43971,12061160,130,Interview fee to become chartered engineer for REDACTED PERSONAL DATA,Member Organizations - Def (8699)
May,Southend-on-Sea Borough Council,http://opendatacommunities.org/id/unitary-authority/southend,ED Children & Public Health,Children And Education Services,3310,Amazon.Co.Uk,43971,12061160,45.44,Books for Looked After Children,Other Direct Marketers (5969)
May,Southend-on-Sea Borough Council,http://opendatacommunities.org/id/unitary-authority/southend,ED Adults & Communities,Cultural And Related Services,4261,Www.Thebookseller.Com,43972,12061160,99.31,Bookseller subscription,Book Stores (5942)
May,Southend-on-Sea Borough Council,http://opendatacommunities.org/id/unitary-authority/southend,ED Adults & Communities,Cultural And Related Services,4261,Www.Thebookseller.Com,43972,12061160,105.34,Bookseller subscription,Book Stores (5942)
May,Southend-on-Sea Borough Council,http://opendatacommunities.org/id/unitary-authority/southend,ED Finance & Resources,Central Services to the Public,7120,Www.Ukpos.Com,43972,12061160,239.76,covid signage,Stationery Stores (5943)
May,Southend-on-Sea Borough Council,http://opendatacommunities.org/id/unitary-authority/southend,ED Adults & Communities,Adult Social Care,1342,Ocs Group Uk,43971,12061160,52.9,Food for workers doing long days during Covid,Eating Places/Restaurants (5812)
May,Southend-on-Sea Borough Council,http://opendatacommunities.org/id/unitary-authority/southend,ED Adults & Communities,Adult Social Care,1342,Amznmktplace,43973,12061160,7.3,Materials for an Art Project at METAL,Misc Speciality Retail (5999)
May,Southend-on-Sea Borough Council,http://opendatacommunities.org/id/unitary-authority/southend,ED Adults & Communities,Adult Social Care,1342,Amznmktplace,43973,12061160,10.36,Art pilot with METAL - Material for attendants,Misc Speciality Retail (5999)
May,Southend-on-Sea Borough Council,http://opendatacommunities.org/id/unitary-authority/southend,ED Transformation,Central Services to the Public,7140,Sharonservi,43973,12061160,461.1,Clinell wipes for PPE stock for Civic Campus Covid 19,Lab/Med/Hospital Equipment (5047)
May,Southend-on-Sea Borough Council,http://opendatacommunities.org/id/unitary-authority/southend,ED Children & Public Health,Children And Education Services,3310,Amznmktplace Amazon.Co.Uk,43973,12061160,20.4,Books for Looked After Children,Misc Speciality Retail (5999)
May,Southend-on-Sea Borough Council,http://opendatacommunities.org/id/unitary-authority/southend,ED Finance & Resources,Central Services to the Public,1446,Ocs Group Uk,43973,12061160,40.3,Lunch x2 days for coronavirus response volunteers,Eating Places/Restaurants (5812)
May,Southend-on-Sea Borough Council,http://opendatacommunities.org/id/unitary-authority/southend,ED Finance & Resources,Central Services to the Public,2156,Www.Gov.Uk,43973,12061160,4.5,Payment to probate services to obtain probate details to establish liability for Council Tax,Professional Services - Def (8999)
May,Southend-on-Sea Borough Council,http://opendatacommunities.org/id/unitary-authority/southend,ED Children & Public Health,Children And Education Services,3310,Amazon.Co.Uk,43974,12061160,16.62,Books for Looked After Children,Other Direct Marketers (5969)
May,Southend-on-Sea Borough Council,http://opendatacommunities.org/id/unitary-authority/southend,ED Neighbourhoods & Environment,Environmental And Regulatory Services,4525,Shell Benfleet,43974,12061160,60,fuel to undertake Covid patrols and response / senior SPOC across weekend 23/24/25 may,Service Stations (5541)
May,Southend-on-Sea Borough Council,http://opendatacommunities.org/id/unitary-authority/southend,ED Adults & Communities,Adult Social Care,1342,Amazon.Co.Uk,43976,12061160,107.7,Materials for a Art pilot at METAL,Other Direct Marketers (5969)
May,Southend-on-Sea Borough Council,http://opendatacommunities.org/id/unitary-authority/southend,ED Adults & Communities,Central Services to the Public,7110,Southend On Sea Boroug,43975,12061160,10,COVID 19 Volunteering seafront car parking 240520,"Parking Lots, Meters, Garages (7523)"
May,Southend-on-Sea Borough Council,http://opendatacommunities.org/id/unitary-authority/southend,ED Children & Public Health,Children And Education Services,3396,Monte Portuguese Cafe R,43977,12061160,10.7,food for child,Eating Places/Restaurants (5812)
May,Southend-on-Sea Borough Council,http://opendatacommunities.org/id/unitary-authority/southend,ED Adults & Communities,Adult Social Care,1342,Amznmktplace,43977,12061160,5.42,Materials for an art project at Metal,Misc Speciality Retail (5999)
May,Southend-on-Sea Borough Council,http://opendatacommunities.org/id/unitary-authority/southend,ED Adults & Communities,Cultural And Related Services,4025,The Range,43977,12061160,-10.99,Credit Voucher The Range returned paint that was not needed,Department Stores (5311)
May,Southend-on-Sea Borough Council,http://opendatacommunities.org/id/unitary-authority/southend,ED Finance & Resources,Central Services to the Public,2074,Amazon.Co.Uk Amazon.Co.Uk,43977,12061160,-53.05,Credit Voucher Amazon.Co.Uk Amazon.Co.UkForeign keyboard arrived so returned and credit to follow,Misc Speciality Retail (5999)
May,Southend-on-Sea Borough Council,http://opendatacommunities.org/id/unitary-authority/southend,ED Adults & Communities,Cultural And Related Services,4120,Amazon.Co.Uk,43977,12061160,60.47,Kettles for foreshore outposts.,Misc Speciality Retail (5999)
May,Southend-on-Sea Borough Council,http://opendatacommunities.org/id/unitary-authority/southend,ED Finance & Resources,Central Services to the Public,7150,Www.Cips.Org,43978,12061160,256,REDACTED PERSONAL DATA CIPS registration.,Member Organizations - Def (8699)
May,Southend-on-Sea Borough Council,http://opendatacommunities.org/id/unitary-authority/southend,ED Growth & Housing,Planning Services,5641,Amazon.Co.Uk,43978,12061160,10,Voucher for CITB HS&E app for revision,Other Direct Marketers (5969)
May,Southend-on-Sea Borough Council,http://opendatacommunities.org/id/unitary-authority/southend,ED Growth & Housing,Planning Services,5641,Ncs*vue Citb Hs&e Rev,43978,12061160,21,CITB HS&E test voucher for client,Schools - Default (8299)
May,Southend-on-Sea Borough Council,http://opendatacommunities.org/id/unitary-authority/southend,ED Growth & Housing,Planning Services,5641,Ncs*vue Citb Hs&e Rev,43978,12061160,63,CITB HS&E test voucher for client,Schools - Default (8299)
May,Southend-on-Sea Borough Council,http://opendatacommunities.org/id/unitary-authority/southend,ED Adults & Communities,Cultural And Related Services,4115,Amznmktplace Amazon.Co.Uk,43978,12061160,24.93,Covid-19 Face shields for use at launch sites whilst collecting money,Misc Speciality Retail (5999)
